fUST/lending_fUST_20250118
["ID","MTS","AMOUNT","RATE_DAILY","PERIOD"]
[349487569,1737214245888,-500.0,0.00022602,3]
[349487570,1737214245897,-500.0,0.00022602,3]
[349487571,1737214245906,-500.0,0.00022602,3]
[349487572,1737214245916,-500.0,0.00022602,3]
[349487573,1737214245925,-314.42223626,0.00022602,3]
[349487574,1737214245935,-500.0,0.00022602,3]
[349487575,1737214245944,-157.408363,0.00022602,2]
[349487576,1737214245954,-500.0,0.00022602,3]
[349487577,1737214245963,-157.408363,0.00022602,2]
[349487578,1737214245972,-500.0,0.00022602,3]
[349487579,1737214245981,-500.0,0.00022602,3]
[349487580,1737214245990,-500.0,0.00022602,3]
[349487581,1737214245999,-500.0,0.00022602,3]
[349487582,1737214246009,-500.0,0.00022602,3]
[349487583,1737214246018,-500.0,0.00022602,3]
[349487584,1737214246027,-500.0,0.00022602,3]
[349487585,1737214246040,-500.0,0.00022602,3]
[349487586,1737214246049,-500.0,0.00022602,3]
[349487587,1737214246059,-151.0,0.00022602,7]
[349487588,1737214246069,-230.010823,0.00022602,7]
[349487589,1737214246081,-500.0,0.00022602,3]
[349487590,1737214246090,-500.0,0.00022602,2]
[349487591,1737214246101,-500.0,0.00022602,3]
[349487593,1737214246110,-151.0,0.00022602,7]
[349487595,1737214246120,-500.0,0.00022602,3]
[349487597,1737214246130,-309.301981,0.00022602,7]
[349487599,1737214246140,-309.301981,0.00022602,7]
[349487601,1737214246149,-500.0,0.00022602,3]
[349487603,1737214246159,-1367.14,0.00022602,3]
[349487605,1737214246168,-151.0,0.00022602,7]
[349487606,1737214246178,-151.0,0.00022602,7]
[349487607,1737214246188,-500.0,0.00022602,3]
[349487608,1737214246199,-500.0,0.00022602,3]
[349487609,1737214246209,-500.0,0.00022602,3]
[349487610,1737214246218,-575.74,0.00022602,3]
[349487611,1737214246227,-500.0,0.00022602,3]
[349487612,1737214246237,-500.0,0.00022602,3]
[349487613,1737214246246,-3968.61,0.00022602,3]
[349487615,1737214246256,-500.0,0.00022602,3]
[349487617,1737214246265,-1407.26,0.00022602,3]
[349487619,1737214246274,-2082.0,0.00022602,3]
[349487621,1737214246284,-500.0,0.00022602,3]
[349487623,1737214246293,-500.0,0.00022602,3]
[349487624,1737214246303,-1404.52,0.00022602,3]
[349487626,1737214246312,-500.0,0.00022602,3]
[349487628,1737214246322,-13704.69,0.00022602,3]
[349487629,1737214246332,-2093.75,0.00022602,3]
[349487631,1737214246342,-500.0,0.00022602,3]
[349487633,1737214246352,-904.49,0.00022602,3]
[349487634,1737214246362,-500.0,0.00022602,3]
[349487635,1737214246372,-1467.94,0.00022602,3]
[349487637,1737214246382,-245.708987,0.00022602,7]
[349487638,1737214246392,-500.0,0.00022602,3]
[349487639,1737214246401,-500.0,0.00022602,3]
[349487640,1737214246411,-245.708987,0.00022602,7]
[349487641,1737214246420,-249.51,0.00022611,2]
[349487642,1737214246429,-512.81,0.00022739,3]
[349487643,1737214246439,-500.0,0.00022739,3]
[349487644,1737214246448,-500.0,0.00022739,3]
[349487645,1737214246457,-515.03,0.00022739,3]
[349487646,1737214246466,-500.0,0.00022739,3]
[349487647,1737214246477,-500.0,0.00022739,3]
[349487648,1737214246488,-337.4,0.00022739,3]
[349487649,1737214246498,-500.0,0.00022739,3]
[349487650,1737214246507,-500.0,0.00022739,3]
[349487651,1737214246517,-187.90083906,0.00022739,3]
[349487652,1737214246526,-500.0,0.00022739,3]
[349487653,1737214246535,-157.408363,0.00022739,2]
[349487654,1737214246544,-500.0,0.00022739,3]
[349487655,1737214246554,-157.408363,0.00022739,2]
[349487656,1737214246563,-500.0,0.00022739,3]
[349487657,1737214246573,-160.35147207,0.00022739,3]
[349487658,1737214246582,-500.0,0.00022739,3]
[349487659,1737214246591,-500.0,0.00022739,3]
[349487660,1737214246602,-500.0,0.00022739,3]
[349487661,1737214246611,-500.0,0.00022739,3]
[349487662,1737214246621,-500.0,0.00022739,3]
[349487663,1737214246630,-500.0,0.00022739,3]
[349487664,1737214246639,-500.0,0.00022739,3]
[349487665,1737214246649,-151.0,0.00022739,7]
[349487666,1737214246658,-500.0,0.00022739,3]
[349487667,1737214246668,-500.0,0.00022739,2]
[349487668,1737214246677,-552.9,0.00022739,3]
[349487669,1737214246686,-151.0,0.00022739,7]
[349487670,1737214246695,-309.301981,0.00022739,7]
[349487671,1737214246705,-309.301981,0.00022739,7]
[349487672,1737214246714,-500.0,0.00022739,3]
[349487673,1737214246724,-1367.14,0.00022739,3]
[349487674,1737214246733,-151.0,0.00022739,7]
[349487675,1737214246743,-151.0,0.00022739,7]
[349487676,1737214246752,-500.0,0.00022739,3]
[349487677,1737214246762,-500.0,0.00022739,3]
[349487678,1737214246771,-500.0,0.00022739,3]
[349487679,1737214246780,-575.74,0.00022739,3]
[349487680,1737214246789,-500.0,0.00022739,3]
[349487681,1737214246799,-500.0,0.00022739,3]
[349487682,1737214246808,-3968.61,0.00022739,3]
[349487683,1737214246817,-500.0,0.00022739,3]
[349487684,1737214246826,-1407.26,0.00022739,3]
[349487685,1737214246835,-2082.0,0.00022739,3]
[349487686,1737214246845,-500.0,0.00022739,3]
[349487687,1737214246854,-500.0,0.00022739,3]
[349487688,1737214246864,-1404.52,0.00022739,3]
[349487689,1737214246881,-500.0,0.00022739,3]
[349487690,1737214246892,-13704.69,0.00022739,3]
[349487691,1737214246902,-2093.75,0.00022739,3]
[349487692,1737214246912,-500.0,0.00022739,3]
[349487693,1737214246922,-904.49,0.00022739,3]
[349487694,1737214246932,-500.0,0.00022739,3]
[349487695,1737214246941,-1467.94,0.00022739,3]
[349487696,1737214246951,-245.708987,0.00022739,7]
[349487697,1737214246960,-277.33742536,0.00022739,3]
[349487698,1737214246970,-245.708987,0.00022739,7]
[349487699,1737214246980,-167.095,0.00022844,2]
[349487700,1737214246990,-512.81,0.00022876,3]
[349487701,1737214246999,-500.0,0.00022876,3]
[349487702,1737214247008,-500.0,0.00022876,3]
[349487703,1737214247018,-515.03,0.00022876,3]
[349487704,1737214247028,-500.0,0.00022876,3]
[349487705,1737214247040,-500.0,0.00022876,3]
[349487706,1737214247050,-629.34531959,0.00022876,3]
[349487707,1737214247060,-500.0,0.00022876,3]
[349487708,1737214247071,-500.0,0.00022876,3]
[349487709,1737214247080,-500.0,0.00022876,3]
[349487710,1737214247092,-500.0,0.00022876,3]
[349487711,1737214247103,-500.0,0.00022876,3]
[349487712,1737214247115,-500.0,0.00022876,3]
[349487713,1737214247125,-335.50781953,0.00022876,3]
[349487714,1737214247134,-500.0,0.00022876,3]
[349487715,1737214247144,-500.0,0.00022876,3]
[349487716,1737214247153,-500.0,0.00022876,3]
[349487717,1737214247163,-500.0,0.00022876,3]
[349487718,1737214247172,-500.0,0.00022876,2]
[349487719,1737214247182,-500.0,0.00022876,3]
[349487720,1737214247192,-1367.14,0.00022876,3]
[349487721,1737214247202,-500.0,0.00022876,3]
[349487722,1737214247211,-500.0,0.00022876,3]
[349487723,1737214247221,-500.0,0.00022876,3]
[349487724,1737214247231,-575.74,0.00022876,3]
[349487725,1737214247240,-476.68429608,0.00022876,3]
[349487726,1737214247250,-500.0,0.00022876,3]
[349487727,1737214247259,-3968.61,0.00022876,3]
[349487728,1737214247385,-500.0,0.00022876,3]
[349487729,1737214247395,-1407.26,0.00022876,3]
[349487730,1737214247404,-2082.0,0.00022876,3]
[349487731,1737214247414,-500.0,0.00022876,3]
[349487732,1737214247423,-500.0,0.00022876,3]
[349487733,1737214247432,-1404.52,0.00022876,3]
[349487734,1737214247442,-500.0,0.00022876,3]
[349487735,1737214247451,-13704.69,0.00022876,3]
[349487736,1737214247461,-2093.75,0.00022876,3]
[349487737,1737214247471,-500.0,0.00022876,3]
[349487738,1737214247480,-904.49,0.00022876,3]
[349487739,1737214247490,-500.0,0.00022876,3]
[349487740,1737214247500,-1467.94,0.00022876,3]
[349487741,1737214247509,-207.23604488,0.000229,3]
[349487742,1737214247519,-207.23604475,0.00022942,3]
[349487743,1737214247528,-166.698,0.00022944,2]
[349487744,1737214247537,-207.23604475,0.00022983,3]
[349487745,1737214247546,-1000.0,0.00022999,2]
[349487746,1737214247556,-7438.69753278,0.00023,2]
[349487747,1737214247565,-500.0,0.00023,2]
[349487748,1737214247575,-500.0,0.00023,2]
[349487749,1737214247584,-500.0,0.00023,2]
[349487750,1737214247595,-500.0,0.00023,2]
[349487751,1737214247604,-500.0,0.00023,2]
[349487752,1737214247614,-500.0,0.00023,2]
[349487753,1737214247623,-500.0,0.00023,2]
[349487754,1737214247632,-500.0,0.00023,2]
[349487755,1737214247642,-500.0,0.00023,2]
[349487756,1737214247651,-500.0,0.00023,2]
[349487757,1737214247660,-500.0,0.00023,2]
[349487758,1737214247669,-500.0,0.00023,2]
[349487759,1737214247678,-500.0,0.00023,2]
[349487760,1737214247687,-500.0,0.00023,2]
[349487761,1737214247696,-500.0,0.00023,2]
[349487762,1737214247706,-500.0,0.00023,2]
[349487763,1737214247715,-500.0,0.00023,2]
[349487764,1737214247724,-500.0,0.00023,2]
[349487765,1737214247734,-500.0,0.00023,2]
[349487766,1737214247743,-500.0,0.00023,2]
[349487767,1737214247752,-500.0,0.00023,2]
[349487768,1737214247763,-500.0,0.00023,2]
[349487769,1737214247772,-500.0,0.00023,2]
[349487770,1737214247781,-500.0,0.00023,2]
[349487771,1737214247791,-500.0,0.00023,2]
[349487772,1737214247800,-500.0,0.00023,2]
[349487773,1737214247810,-500.0,0.00023,2]
[349487774,1737214247819,-500.0,0.00023,2]
[349487775,1737214247828,-500.0,0.00023,2]
[349487776,1737214247838,-500.0,0.00023,2]
[349487777,1737214247848,-500.0,0.00023,2]
[349487778,1737214247857,-500.0,0.00023,2]
[349487779,1737214247867,-500.0,0.00023,2]
[349487780,1737214247877,-500.0,0.00023,2]
[349487781,1737214247887,-500.0,0.00023,2]
[349487782,1737214247897,-500.0,0.00023,2]
[349487783,1737214247906,-500.0,0.00023,2]
[349487784,1737214247916,-500.0,0.00023,2]
[349487785,1737214247926,-500.0,0.00023,2]
[349487786,1737214247935,-500.0,0.00023,2]
[349487787,1737214247945,-500.0,0.00023,2]
[349487788,1737214247954,-500.0,0.00023,2]
[349487789,1737214247963,-500.0,0.00023,2]
[349487790,1737214247973,-500.0,0.00023,2]
[349487791,1737214247983,-500.0,0.00023,2]
[349487792,1737214247992,-500.0,0.00023,2]
[349487793,1737214248002,-500.0,0.00023,2]
[349487794,1737214248011,-500.0,0.00023,2]
[349487795,1737214248020,-500.0,0.00023,2]
[349487796,1737214248030,-500.0,0.00023,2]
[349487797,1737214248043,-500.0,0.00023,2]
[349487798,1737214248053,-500.0,0.00023,2]
[349487799,1737214248063,-500.0,0.00023,2]
[349487800,1737214248072,-500.0,0.00023,2]
[349487801,1737214248083,-500.0,0.00023,2]
[349487802,1737214248095,-500.0,0.00023,2]
[349487803,1737214248105,-545.25446342,0.00023,2]
[349487804,1737214248116,-1000.0,0.00023,23]
[349487805,1737214248125,-847.72,0.00023,2]
[349487806,1737214248134,-151.0,0.00023,6]
[349487807,1737214248144,-10000.0,0.00023,2]
[349487808,1737214248155,-157.408363,0.00023,2]
[349487809,1737214248164,-157.408363,0.00023,2]
[349487810,1737214248174,-151.0,0.00023,7]
[349487811,1737214248184,-309.301981,0.00023,7]
[349487812,1737214248194,-309.301981,0.00023,7]
[349487813,1737214248204,-151.0,0.00023,7]
[349487814,1737214248214,-151.0,0.00023,7]
[349487815,1737214248224,-7438.69753278,0.00023,3]
[349487816,1737214248234,-200.0,0.00023,2]
[349487817,1737214248243,-245.708987,0.00023,7]
[349487818,1737214248257,-245.708987,0.00023,7]
[349487819,1737214248266,-512.81,0.00023013,3]
[349487820,1737214248278,-500.0,0.00023013,3]
[349487821,1737214248288,-500.0,0.00023013,3]
[349487822,1737214248297,-515.03,0.00023013,3]
[349487823,1737214248307,-500.0,0.00023013,3]
[349487824,1737214248317,-251.22,0.00023013,3]
[349487825,1737214248326,-157.408363,0.00023013,2]
[349487826,1737214248335,-500.0,0.00023013,3]
[349487827,1737214248347,-157.408363,0.00023013,2]
[349487828,1737214248356,-500.0,0.00023013,3]
[349487829,1737214248366,-500.0,0.00023013,3]
[349487830,1737214248376,-500.0,0.00023013,3]
[349487831,1737214248385,-500.0,0.00023013,3]
[349487832,1737214248394,-508.94746241,0.00023013,3]
[349487833,1737214248404,-477.44958018,0.00023013,3]
[349487834,1737214248413,-151.0,0.00023013,7]
[349487835,1737214248423,-441.1377331,0.00023013,3]
[349487836,1737214248432,-500.0,0.00023013,2]
[349487837,1737214248442,-309.301981,0.00023013,7]
[349487838,1737214248452,-309.301981,0.00023013,7]
[349487839,1737214248463,-500.0,0.00023013,3]
[349487840,1737214248472,-1367.14,0.00023013,3]
[349487841,1737214248482,-151.0,0.00023013,7]
[349487842,1737214248492,-169.020951,0.00023013,7]
[349487843,1737214248502,-519.05491331,0.00023013,3]
[349487844,1737214248512,-174.74694782,0.00023013,3]
[349487845,1737214248521,-500.0,0.00023013,3]
[349487846,1737214248530,-575.74,0.00023013,3]
[349487847,1737214248539,-500.0,0.00023013,3]
[349487848,1737214248548,-3968.61,0.00023013,3]
[349487849,1737214248558,-500.0,0.00023013,3]
[349487850,1737214248567,-1407.26,0.00023013,3]
[349487851,1737214248576,-2082.0,0.00023013,3]
[349487852,1737214248586,-500.0,0.00023013,3]
[349487853,1737214248596,-500.0,0.00023013,3]
[349487854,1737214248607,-1404.52,0.00023013,3]
[349487855,1737214248616,-500.0,0.00023013,3]
[349487856,1737214248626,-13704.69,0.00023013,3]
[349487857,1737214248636,-2093.75,0.00023013,3]
[349487858,1737214248646,-500.0,0.00023013,3]
[349487859,1737214248656,-904.49,0.00023013,3]
[349487860,1737214248666,-1467.94,0.00023013,3]
[349487861,1737214248675,-500.0,0.00023013,3]
[349487862,1737214248684,-245.708987,0.00023013,7]
[349487863,1737214248693,-245.708987,0.00023013,7]
[349487864,1737214248703,-207.23604475,0.00023025,3]
[349487865,1737214248713,-500.0,0.00023033,2]
[349487866,1737214248723,-207.23604475,0.00023067,3]
[349487867,1737214248733,-151.0,0.000231,10]
[349487868,1737214248743,-207.23604475,0.00023108,3]
[349487869,1737214248752,-512.81,0.0002315,3]
[349487870,1737214248762,-598.87,0.0002315,3]
[349487871,1737214248772,-500.0,0.0002315,3]
[349487872,1737214248782,-515.03,0.0002315,3]
[349487873,1737214248791,-500.0,0.0002315,3]
[349487874,1737214248802,-157.408363,0.0002315,2]
[349487875,1737214248811,-157.408363,0.0002315,2]
[349487876,1737214248821,-500.0,0.0002315,3]
[349487877,1737214248831,-500.0,0.0002315,3]
[349487878,1737214248841,-151.0,0.0002315,7]
[349487879,1737214248851,-500.0,0.0002315,2]
[349487880,1737214248861,-309.301981,0.0002315,7]
[349487881,1737214248871,-309.301981,0.0002315,7]
[349487882,1737214248880,-500.0,0.0002315,3]
[349487883,1737214248890,-1367.14,0.0002315,3]
[349487884,1737214248900,-151.0,0.0002315,7]
[349487885,1737214248910,-573.4300515,0.0002315,3]
[349487886,1737214248920,-575.74,0.0002315,3]
[349487887,1737214248930,-546.75585086,0.0002315,3]
[349487888,1737214248939,-3968.61,0.0002315,3]
[349487889,1737214248949,-500.0,0.0002315,3]
[349487890,1737214248959,-1407.26,0.0002315,3]
[349487891,1737214248968,-2082.0,0.0002315,3]
[349487892,1737214248978,-500.0,0.0002315,3]
[349487893,1737214248989,-500.0,0.0002315,3]
[349487894,1737214248999,-1404.52,0.0002315,3]
[349487895,1737214249008,-500.0,0.0002315,3]
[349487896,1737214249018,-13704.69,0.0002315,3]
[349487897,1737214249028,-2093.75,0.0002315,3]
[349487898,1737214249044,-498.58,0.0002315,3]
[349487899,1737214249053,-904.49,0.0002315,3]
[349487900,1737214249062,-1467.94,0.0002315,3]
[349487901,1737214249071,-500.0,0.0002315,3]
[349487902,1737214249080,-245.708987,0.0002315,7]
[349487903,1737214249089,-245.708987,0.0002315,7]
[349487904,1737214249100,-207.23604475,0.0002315,3]
[349487905,1737214249110,-207.23604475,0.00023192,3]
[349487906,1737214249120,-151.0,0.000232,8]
[349487907,1737214249131,-207.23604475,0.00023233,3]
[349487908,1737214249140,-2500.0,0.00023269,3]
[349487909,1737214249150,-207.23604475,0.00023275,3]
[349487910,1737214249159,-2500.0,0.00023278,3]
[349487911,1737214249169,-2500.0,0.00023287,3]
[349487912,1737214249178,-512.81,0.00023287,3]
[349487913,1737214249188,-500.0,0.00023287,3]
[349487914,1737214249198,-515.03,0.00023287,3]
[349487915,1737214249207,-500.0,0.00023287,3]
[349487916,1737214249217,-500.0,0.00023287,3]
[349487917,1737214249227,-500.0,0.00023287,3]
[349487918,1737214249236,-500.0,0.00023287,2]
[349487919,1737214249246,-500.0,0.00023287,3]
[349487920,1737214249256,-1367.14,0.00023287,3]
[349487921,1737214249266,-575.74,0.00023287,3]
[349487922,1737214249276,-3968.61,0.00023287,3]
[349487923,1737214249286,-500.0,0.00023287,3]
[349487924,1737214249296,-1407.26,0.00023287,3]
[349487925,1737214249306,-2082.0,0.00023287,3]
[349487926,1737214249316,-500.0,0.00023287,3]
[349487927,1737214249326,-500.0,0.00023287,3]
[349487928,1737214249336,-1404.52,0.00023287,3]
[349487929,1737214249345,-434.95520501,0.00023287,3]
[349487930,1737214249355,-13704.69,0.00023287,3]
[349487931,1737214249367,-2093.75,0.00023287,3]
[349487932,1737214249376,-904.49,0.00023287,3]
[349487933,1737214249387,-500.0,0.00023287,3]
[349487934,1737214249396,-1467.94,0.00023287,3]
[349487935,1737214249405,-245.708987,0.00023287,7]
[349487936,1737214249415,-245.708979,0.00023287,7]
[349487937,1737214249425,-1000.0,0.00023298,2]
[349487938,1737214249435,-151.0,0.000233,5]
[349487939,1737214249444,-151.0,0.000233,6]
[349487940,1737214249453,-207.23604475,0.00023317,3]
[349487941,1737214249463,-255.34657986,0.00023322,2]
[349487942,1737214249557,-1000.0,0.00023353,2]
[349487943,1737214249566,-207.23604475,0.00023358,3]
[349487944,1737214249575,-151.0,0.000234,5]
[349487945,1737214249585,-151.0,0.000234,8]
[349487946,1737214249597,-207.23604475,0.000234,3]
[349487947,1737214249607,-1000.0,0.00023423,2]
[349487948,1737214249616,-151.0,0.00023423,7]
[349487949,1737214249625,-512.81,0.00023424,3]
[349487950,1737214249634,-225.21,0.00023424,3]
[349487951,1737214249644,-515.03,0.00023424,3]
[349487952,1737214249653,-500.0,0.00023424,3]
[349487953,1737214249663,-157.408363,0.00023424,2]
[349487954,1737214249672,-157.408358,0.00023424,2]
[349487955,1737214249682,-500.0,0.00023424,3]
[349487956,1737214249691,-500.0,0.00023424,3]
[349487957,1737214249701,-500.0,0.00023424,2]
[349487958,1737214249710,-309.301981,0.00023424,7]
[349487959,1737214249720,-309.301973,0.00023424,7]
[349487960,1737214249729,-500.0,0.00023424,3]
[349487961,1737214249739,-1367.14,0.00023424,3]
[349487962,1737214249748,-172.01558,0.00023424,7]
[349487963,1737214249757,-575.74,0.00023424,3]
[349487964,1737214249767,-3968.61,0.00023424,3]
[349487965,1737214249776,-500.0,0.00023424,3]
[349487966,1737214249785,-1407.26,0.00023424,3]
[349487967,1737214249795,-2082.0,0.00023424,3]
[349487968,1737214249804,-500.0,0.00023424,3]
[349487969,1737214249814,-546.33,0.00023424,3]
[349487970,1737214249823,-1404.52,0.00023424,3]
[349487971,1737214249833,-13704.69,0.00023424,3]
[349487972,1737214249843,-2093.75,0.00023424,3]
[349487973,1737214249854,-904.49,0.00023424,3]
[349487974,1737214249864,-500.0,0.00023424,3]
[349487975,1737214249873,-1467.94,0.00023424,3]
[349487976,1737214249883,-616.71301872,0.000235,2]
[349487977,1737214249893,-6341.84,0.000235,14]
[349487978,1737214249902,-2497.52,0.000235,14]
[349487979,1737214249911,-43213.59194685,0.000235,2]
[349487980,1737214249921,-151.0,0.000235,8]
[349487981,1737214249930,-7032.51360757,0.00023556,2]
[349487982,1737214249940,-25297.41710944,0.00023561,59]
[349487983,1737214249949,-512.81,0.00023561,3]
[349487984,1737214249958,-515.03,0.00023561,3]
[349487985,1737214249968,-500.0,0.00023561,3]
[349487986,1737214249977,-500.0,0.00023561,3]
[349487987,1737214249986,-500.0,0.00023561,3]
[349487988,1737214249997,-500.0,0.00023561,2]
[349487989,1737214250006,-500.0,0.00023561,3]
[349487990,1737214250016,-1367.14,0.00023561,3]
[349487991,1737214250026,-575.74,0.00023561,3]
[349487992,1737214250037,-3968.61,0.00023561,3]
[349487993,1737214250047,-500.0,0.00023561,3]
[349487994,1737214250056,-1407.26,0.00023561,3]
[349487995,1737214250066,-2082.0,0.00023561,3]
[349487996,1737214250078,-500.0,0.00023561,3]
[349487997,1737214250087,-1404.52,0.00023561,3]
[349487998,1737214250099,-13704.69,0.00023561,3]
[349487999,1737214250110,-2093.75,0.00023561,3]
[349488000,1737214250122,-904.49,0.00023561,3]
[349488001,1737214250132,-500.0,0.00023561,3]
[349488002,1737214250142,-1467.94,0.00023561,3]
[349488003,1737214250152,-282.4074176,0.00023572,2]
[349488004,1737214250162,-512.81,0.00023698,3]
[349488005,1737214250172,-515.03,0.00023698,3]
[349488006,1737214250181,-500.0,0.00023698,3]
[349488007,1737214250191,-500.0,0.00023698,3]
[349488008,1737214250201,-200.37252203,0.00023698,2]
[349488009,1737214250212,-500.0,0.00023698,3]
[349488010,1737214250221,-500.0,0.00023698,2]
[349488011,1737214250231,-500.0,0.00023698,3]
[349488012,1737214250241,-1367.14,0.00023698,3]
[349488013,1737214250251,-575.74,0.00023698,3]
[349488014,1737214250260,-3968.61,0.00023698,3]
[349488015,1737214250270,-500.0,0.00023698,3]
[349488016,1737214250280,-1407.26,0.00023698,3]
[349488017,1737214250290,-500.0,0.00023698,2]
[349488018,1737214250301,-2082.0,0.00023698,3]
[349488019,1737214250311,-500.0,0.00023698,3]
[349488020,1737214250321,-500.0,0.00023698,2]
[349488021,1737214250330,-219.61348471,0.00023698,2]
[349488022,1737214250340,-152.67782934,0.00023698,2]
[349488023,1737214250353,-1404.52,0.00023698,3]
[349488024,1737214250364,-500.0,0.00023698,2]
[349488025,1737214250373,-13704.69,0.00023698,3]
[349488026,1737214250383,-999.98,0.00023698,2]
[349488027,1737214250393,-500.0,0.00023698,2]
[349488028,1737214250403,-2093.75,0.00023698,3]
[349488029,1737214250412,-904.49,0.00023698,3]
[349488030,1737214250422,-500.0,0.00023698,3]
[349488031,1737214250432,-1467.94,0.00023698,3]
[349488032,1737214250442,-151.0,0.000237,5]
[349488033,1737214250451,-153.45,0.000237,31]
[349488034,1737214250461,-153.45,0.000237,31]
[349488035,1737214250471,-153.45,0.000237,31]
[349488036,1737214250480,-153.45,0.000237,31]
[349488037,1737214250490,-153.45,0.000237,31]
[349488038,1737214250500,-153.45,0.000237,31]
[349488039,1737214250509,-153.45,0.000237,31]
[349488040,1737214250519,-1200.0,0.00023766,2]
[349488041,1737214250529,-152.1,0.00023794,2]
[349488042,1737214250538,-2000.0,0.000238,2]
[349488043,1737214250548,-828.8,0.000238,2]
[349488044,1737214250558,-420.0,0.00023817,2]
[349488045,1737214250567,-512.81,0.00023835,3]
[349488046,1737214250578,-515.03,0.00023835,3]
[349488047,1737214250587,-500.0,0.00023835,3]
[349488048,1737214250597,-598.94374177,0.00023835,3]
[349488049,1737214250608,-500.0,0.00023835,3]
[349488050,1737214250618,-500.0,0.00023835,2]
[349488051,1737214250627,-500.0,0.00023835,3]
[349488052,1737214250638,-1367.14,0.00023835,3]
[349488053,1737214250647,-575.74,0.00023835,3]
[349488054,1737214250657,-3968.61,0.00023835,3]
[349488055,1737214250667,-500.0,0.00023835,3]
[349488056,1737214250679,-1407.26,0.00023835,3]
[349488057,1737214250689,-2082.0,0.00023835,3]
[349488058,1737214250699,-500.0,0.00023835,3]
[349488059,1737214250708,-1404.52,0.00023835,3]
[349488060,1737214250718,-13704.69,0.00023835,3]
[349488061,1737214250728,-2093.75,0.00023835,3]
[349488062,1737214250738,-904.49,0.00023835,3]
[349488063,1737214250749,-500.0,0.00023835,3]
[349488064,1737214250759,-1467.94,0.00023835,3]
[349488065,1737214250769,-416.74,0.0002384,2]
[349488066,1737214250780,-45950.60290214,0.00023865,2]
[349488067,1737214250790,-282.4074176,0.00023865,2]
[349488068,1737214250799,-6645.14380573,0.00023866,2]
[349488069,1737214250808,-5000.0,0.00023866,2]
[349488070,1737214250818,-5000.0,0.00023866,2]
[349488071,1737214250828,-5000.0,0.00023866,2]
[349488072,1737214250837,-5000.0,0.00023866,2]
[349488073,1737214250847,-703.95,0.000239,7]
[349488074,1737214250857,-188.0,0.000239,2]
[349488075,1737214250867,-151.0,0.00023941,7]
[349488076,1737214250876,-154978.36115624,0.0002395,15]
[349488077,1737214250956,-264.80604893,0.0002395,15]
[349488078,1737214250967,-464.96799901,0.0002395,15]
[349488079,1737214251147,-500.0,0.00021917,3]
[349488080,1737214251157,-500.0,0.00022054,3]
[349488081,1737214251166,-500.0,0.00022191,3]
[349488082,1737214251176,-391.23,0.00022328,3]
[349488083,1737214251185,-207.23604475,0.00023442,3]
[349488084,1737214251195,-207.23604475,0.00023483,3]
[349488085,1737214251204,-207.23604475,0.00023525,3]